[Event "2026 European Womens Championship"]
[Site "Batumi, GE"]
[Date "2026.05.29"]
[Round "5"]
[White "Berke, Ana"]
[Black "Asatiani, Natali"]
[Result "1-0"]
[Board "114"]
[TimeControl "5400+30"]
[WhiteFideId "14510359"]
[BlackFideId "13636715"]
[WhiteElo "2164"]
[BlackElo "1603"]
[WhiteTitle "WIM"]
[WhiteClock "0:35:17"]
[BlackClock "0:22:54"]
[Variant "Standard"]

1. d4 {[%clk 1:30:57]}  Nf6 {[%clk 1:30:42]} 2. Nc3 {[%clk 1:31:11]}  g6 {[%clk 1:30:10]} 3. e4 {[%clk 1:29:58]}  d6 {[%clk 1:30:23]}
4. Bc4 {[%clk 1:29:59]}  Bg7 {[%clk 1:29:32]} 5. Qe2 {[%clk 1:30:11]}  e5 {[%clk 1:22:56]} 6. dxe5 {[%clk 1:29:34]}  dxe5 {[%clk 1:23:22]}
7. Nf3 {[%clk 1:26:51]}  Qe7 {[%clk 1:19:36]} 8. h3 {[%clk 1:19:29]}  O-O {[%clk 1:16:26]} 9. O-O {[%clk 1:18:52]}  c6 {[%clk 1:13:45]}
10. a4 {[%clk 1:18:04]}  Qc7 {[%clk 1:09:28]} 11. a5 {[%clk 1:15:40]}  Nbd7 {[%clk 1:07:33]} 12. Be3 {[%clk 1:13:38]}  Nh5 {[%clk 1:06:09]}
13. g3 {[%clk 1:07:41]}  Kh8 {[%clk 1:00:03]} 14. Ng5 {[%clk 1:04:04]}  Kg8 {[%clk 0:50:15]} 15. Nxf7 {[%clk 0:40:28]}  Rxf7 {[%clk 0:42:32]}
16. Bxf7+ {[%clk 0:40:40]}  Kxf7 {[%clk 0:42:54]} 17. Qc4+ {[%clk 0:40:52]}  Kf8 {[%clk 0:32:14]} 18. f4 {[%clk 0:38:10]}  Ndf6 {[%clk 0:23:22]}
19. Nb5 {[%clk 0:31:29]}  Qf7 {[%clk 0:15:48]} 20. Qxf7+ {[%clk 0:28:48]}  Kxf7 {[%clk 0:16:13]} 21. Nc7 {[%clk 0:27:03]}  Bxh3 {[%clk 0:14:35]}
22. Nxa8 {[%clk 0:26:48]}  Bxf1 {[%clk 0:13:39]} 23. Rxf1 {[%clk 0:25:04]}  Nxg3 {[%clk 0:12:25]} 24. Rf3 {[%clk 0:24:44]}  Nfxe4 {[%clk 0:11:51]}
25. fxe5+ {[%clk 0:23:27]}  Ke6 {[%clk 0:12:08]} 26. Nc7+ {[%clk 0:22:19]}  Ke7 {[%clk 0:10:55]} 27. e6 {[%clk 0:21:28]}  Nf5 {[%clk 0:09:39]}
28. Bxa7 {[%clk 0:21:34]}  Be5 {[%clk 0:09:07]} 29. Rd3 {[%clk 0:19:57]}  Nfd6 {[%clk 0:07:50]} 30. c4 {[%clk 0:17:38]}  c5 {[%clk 0:05:30]}
31. b4 {[%clk 0:16:39]}  Bd4+ {[%clk 0:04:46]} 32. Kg2 {[%clk 0:16:07]}  h6 {[%clk 0:03:31]} 33. bxc5 {[%clk 0:13:51]}  Bxc5 {[%clk 0:03:40]}
34. Bxc5 {[%clk 0:13:59]}  Nxc5 {[%clk 0:04:08]} 35. Re3 {[%clk 0:13:20]}  Nde4 {[%clk 0:03:10]} 36. Kf3 {[%clk 0:12:54]}  Ng5+ {[%clk 0:03:22]}
37. Kg4 {[%clk 0:11:30]}  Ngxe6 {[%clk 0:03:00]} 38. Nxe6 {[%clk 0:11:54]}  Nxe6 {[%clk 0:03:28]} 39. Rb3 {[%clk 0:12:08]}  Nc5 {[%clk 0:02:03]}
40. Rxb7+ {[%clk 0:12:00]}  Kd8 {[%clk 0:00:35]} 41. Rh7 {[%clk 0:12:02]}  Kc8 {[%clk 0:29:52]} 42. Rxh6 {[%clk 0:39:11]}  Nd3 {[%clk 0:29:38]}
43. Kg5 {[%clk 0:38:56]}  Ne5 {[%clk 0:29:48]} 44. Rh7 {[%clk 0:38:32]}  Nxc4 {[%clk 0:29:59]} 45. a6 {[%clk 0:38:52]}  Kb8 {[%clk 0:30:23]}
46. Kxg6 {[%clk 0:37:26]}  Nd6 {[%clk 0:26:26]} 47. Kf6 {[%clk 0:36:28]}  Ne4+ {[%clk 0:26:36]} 48. Ke5 {[%clk 0:36:14]}  Nc5 {[%clk 0:26:56]}
49. a7+ {[%clk 0:36:04]}  Ka8 {[%clk 0:26:55]} 50. Kd5 {[%clk 0:35:35]}  Nb7 {[%clk 0:24:37]} 51. Kc6 {[%clk 0:35:07]}  Na5+ {[%clk 0:22:33]}
52. Kb6 {[%clk 0:35:04]}  Nc4+ {[%clk 0:22:54]} 53. Ka6 {[%clk 0:35:17]} 1-0

[Event "2026 European Womens Championship"]
[Site "Batumi, GE"]
[Date "2026.05.29"]
[Round "5"]
[White "Dwilewicz, Katarzyna"]
[Black "Giorgadze, Mariam Ere"]
[Result "1-0"]
[Board "115"]
[TimeControl "5400+30"]
[WhiteFideId "1148486"]
[BlackFideId "13636839"]
[WhiteElo "2131"]
[BlackElo "1909"]
[WhiteTitle "WIM"]
[WhiteClock "0:30:12"]
[BlackClock "0:01:26"]
[Variant "Standard"]

1. e4 {[%clk 1:30:58]}  c5 {[%clk 1:30:24]} 2. c3 {[%clk 1:30:13]}  d5 {[%clk 1:30:21]} 3. exd5 {[%clk 1:30:29]}  Qxd5 {[%clk 1:30:48]}
4. Nf3 {[%clk 1:30:50]}  Nf6 {[%clk 1:31:03]} 5. d4 {[%clk 1:31:04]}  Nc6 {[%clk 1:31:17]} 6. Be2 {[%clk 1:31:15]}  Bg4 {[%clk 1:30:57]}
7. O-O {[%clk 1:30:57]}  e6 {[%clk 1:30:35]} 8. Be3 {[%clk 1:31:09]}  Be7 {[%clk 1:30:09]} 9. dxc5 {[%clk 1:27:18]}  O-O {[%clk 1:25:16]}
10. h3 {[%clk 1:25:05]}  Bh5 {[%clk 1:21:19]} 11. Qb3 {[%clk 1:16:11]}  Qd7 {[%clk 1:13:06]} 12. Rd1 {[%clk 1:11:12]}  Qc7 {[%clk 1:12:45]}
13. Na3 {[%clk 1:11:31]}  Nd5 {[%clk 1:00:53]} 14. Nb5 {[%clk 1:04:34]}  Qa5 {[%clk 0:51:47]} 15. Bd2 {[%clk 0:59:07]}  a6 {[%clk 0:36:04]}
16. c4 {[%clk 0:51:42]}  Ndb4 {[%clk 0:36:23]} 17. Nd6 {[%clk 0:40:43]}  Bxf3 {[%clk 0:20:29]} 18. Bxf3 {[%clk 0:40:26]}  Qxc5 {[%clk 0:19:50]}
19. Nxb7 {[%clk 0:19:27]}  Qb6 {[%clk 0:10:19]} 20. Bxc6 {[%clk 0:19:12]}  Qxc6 {[%clk 0:10:39]} 21. Bxb4 {[%clk 0:18:42]}  Qxb7 {[%clk 0:11:03]}
22. Bxe7 {[%clk 0:19:00]}  Qxe7 {[%clk 0:11:29]} 23. Rd2 {[%clk 0:17:26]}  Rfb8 {[%clk 0:11:07]} 24. Qf3 {[%clk 0:15:51]}  Rd8 {[%clk 0:09:47]}
25. Rad1 {[%clk 0:15:38]}  Rac8 {[%clk 0:09:09]} 26. Qb7 {[%clk 0:09:25]}  Qe8 {[%clk 0:05:11]} 27. Rxd8 {[%clk 0:08:09]}  Rxd8 {[%clk 0:05:38]}
28. Rxd8 {[%clk 0:08:32]}  Qxd8 {[%clk 0:06:03]} 29. Qxa6 {[%clk 0:08:26]}  h6 {[%clk 0:05:56]} 30. Qa4 {[%clk 0:04:32]}  Qd2 {[%clk 0:05:55]}
31. Qe8+ {[%clk 0:02:43]}  Kh7 {[%clk 0:06:18]} 32. Qxf7 {[%clk 0:02:55]}  Qc1+ {[%clk 0:06:01]} 33. Kh2 {[%clk 0:03:21]}  Qxc4 {[%clk 0:06:25]}
34. b3 {[%clk 0:03:11]}  Qd5 {[%clk 0:05:48]} 35. Qf4 {[%clk 0:02:34]}  e5 {[%clk 0:04:53]} 36. Qe3 {[%clk 0:02:45]}  e4 {[%clk 0:04:33]}
37. a4 {[%clk 0:03:04]}  Qd3 {[%clk 0:03:37]} 38. g3 {[%clk 0:02:40]}  Kg8 {[%clk 0:03:36]} 39. a5 {[%clk 0:01:51]}  Kf7 {[%clk 0:01:36]}
40. Kg2 {[%clk 0:01:28]}  Ke6 {[%clk 0:01:26]} 41. Qxd3 {[%clk 0:30:12]} 1-0

[Event "2026 European Womens Championship"]
[Site "Batumi, GE"]
[Date "2026.05.29"]
[Round "5"]
[White "Gharibyan, Mane"]
[Black "Lomaia, Diana"]
[Result "0-1"]
[Board "116"]
[TimeControl "5400+30"]
[WhiteFideId "13306430"]
[BlackFideId "13612476"]
[WhiteElo "1776"]
[BlackElo "2110"]
[BlackTitle "WFM"]
[WhiteClock "0:06:08"]
[BlackClock "0:03:03"]
[Variant "Standard"]

1. e4 {[%clk 1:24:28]}  e5 {[%clk 1:29:25]} 2. Nf3 {[%clk 1:24:52]}  Nc6 {[%clk 1:29:36]} 3. Bb5 {[%clk 1:25:06]}  a6 {[%clk 1:29:59]}
4. Ba4 {[%clk 1:25:32]}  Nf6 {[%clk 1:30:19]} 5. d3 {[%clk 1:23:46]}  b5 {[%clk 1:30:15]} 6. Bb3 {[%clk 1:24:12]}  Bc5 {[%clk 1:24:50]}
7. a4 {[%clk 1:17:15]}  b4 {[%clk 1:23:35]} 8. a5 {[%clk 1:15:00]}  Bb7 {[%clk 1:19:30]} 9. O-O {[%clk 1:14:34]}  O-O {[%clk 1:17:57]}
10. Nbd2 {[%clk 1:10:56]}  d5 {[%clk 1:14:05]} 11. exd5 {[%clk 1:08:25]}  Nxd5 {[%clk 1:14:16]} 12. Nc4 {[%clk 1:05:21]}  f6 {[%clk 1:10:07]}
13. Be3 {[%clk 0:57:08]}  Be7 {[%clk 1:08:01]} 14. Qe2 {[%clk 0:47:24]}  Kh8 {[%clk 1:07:49]} 15. Bd2 {[%clk 0:37:13]}  Qd7 {[%clk 1:04:12]}
16. h3 {[%clk 0:33:13]}  Rad8 {[%clk 1:03:12]} 17. Rfe1 {[%clk 0:28:38]}  Bc5 {[%clk 0:58:09]} 18. Be3 {[%clk 0:24:09]}  Nxe3 {[%clk 0:51:46]}
19. fxe3 {[%clk 0:21:31]}  Ne7 {[%clk 0:49:32]} 20. Nh4 {[%clk 0:19:31]}  g5 {[%clk 0:44:12]} 21. Nf3 {[%clk 0:19:01]}  Ng6 {[%clk 0:40:37]}
22. Kh1 {[%clk 0:15:40]}  Nh4 {[%clk 0:23:28]} 23. e4 {[%clk 0:15:27]}  Ng6 {[%clk 0:22:57]} 24. Nh2 {[%clk 0:12:49]}  Nf4 {[%clk 0:21:17]}
25. Qf3 {[%clk 0:12:07]}  Bc8 {[%clk 0:19:37]} 26. Ne3 {[%clk 0:02:52]}  Bxe3 {[%clk 0:18:31]} 27. Qxe3 {[%clk 0:00:37]}  Qd6 {[%clk 0:16:10]}
28. Nf1 {[%clk 0:00:39]}  Rfe8 {[%clk 0:13:18]} 29. Ng3 {[%clk 0:00:53]}  Re7 {[%clk 0:12:59]} 30. Rad1 {[%clk 0:00:47]}  h5 {[%clk 0:09:51]}
31. Nf5 {[%clk 0:00:44]}  Bxf5 {[%clk 0:10:17]} 32. exf5 {[%clk 0:01:12]}  Qc6 {[%clk 0:07:18]} 33. Qe4 {[%clk 0:01:16]}  Qxe4 {[%clk 0:02:29]}
34. Rxe4 {[%clk 0:01:30]}  c5 {[%clk 0:01:28]} 35. Kh2 {[%clk 0:00:47]}  Rc7 {[%clk 0:00:55]} 36. Bc4 {[%clk 0:00:46]}  Rc6 {[%clk 0:01:03]}
37. Kg1 {[%clk 0:00:34]}  h4 {[%clk 0:00:50]} 38. Bf7 {[%clk 0:00:37]}  Kg7 {[%clk 0:01:11]} 39. Bc4 {[%clk 0:00:47]}  Kf8 {[%clk 0:00:57]}
40. Kf2 {[%clk 0:00:43]}  Nh5 {[%clk 0:00:58]} 41. g4 {[%clk 0:21:12]}  hxg3+ {[%clk 0:22:44]} 42. Kf3 {[%clk 0:19:47]}  Rd7 {[%clk 0:15:20]}
43. h4 {[%clk 0:16:57]}  Rg7 {[%clk 0:14:06]} 44. Rg1 {[%clk 0:06:14]}  gxh4 {[%clk 0:11:03]} 45. Rxh4 {[%clk 0:06:03]}  Rg5 {[%clk 0:11:17]}
46. Be6 {[%clk 0:01:54]}  Rc7 {[%clk 0:01:43]} 47. Rg4 {[%clk 0:01:40]}  Rxg4 {[%clk 0:01:36]} 48. Kxg4 {[%clk 0:02:06]}  Nf4 {[%clk 0:01:53]}
49. Bc4 {[%clk 0:01:01]}  g2 {[%clk 0:01:15]} 50. Kf3 {[%clk 0:00:36]}  Rh7 {[%clk 0:01:28]} 51. Bxa6 {[%clk 0:00:35]}  Rh1 {[%clk 0:01:21]}
52. Rxg2 {[%clk 0:00:56]}  Nxg2 {[%clk 0:01:44]} 53. Kxg2 {[%clk 0:01:23]}  Ra1 {[%clk 0:02:08]} 54. Bc4 {[%clk 0:01:02]}  Rxa5 {[%clk 0:02:36]}
55. Kf3 {[%clk 0:01:07]}  Ke7 {[%clk 0:03:01]} 56. Kg4 {[%clk 0:00:36]}  Ra1 {[%clk 0:03:24]} 57. Kf3 {[%clk 0:00:33]}  Rf1+ {[%clk 0:02:22]}
58. Ke4 {[%clk 0:00:47]}  Kd6 {[%clk 0:02:45]} 59. Be6 {[%clk 0:00:40]}  Rf2 {[%clk 0:02:53]} 60. b3 {[%clk 0:00:45]}  Rxc2 {[%clk 0:03:00]}
61. Bc4 {[%clk 0:00:48]}  Rf2 {[%clk 0:03:10]} 62. Be6 {[%clk 0:01:03]}  Rf4+ {[%clk 0:03:22]} 63. Ke3 {[%clk 0:01:30]}  Ke7 {[%clk 0:03:41]}
64. Bc8 {[%clk 0:00:48]}  Kf8 {[%clk 0:03:53]} 65. Be6 {[%clk 0:00:42]}  Kg7 {[%clk 0:04:20]} 66. Bd7 {[%clk 0:00:44]}  Kh6 {[%clk 0:04:47]}
67. Bc8 {[%clk 0:01:04]}  Kg5 {[%clk 0:05:13]} 68. Be6 {[%clk 0:01:30]}  Rxf5 {[%clk 0:04:23]} 69. Ke4 {[%clk 0:01:57]}  Rf4+ {[%clk 0:03:59]}
70. Kd5 {[%clk 0:02:03]}  Rd4+ {[%clk 0:04:27]} 71. Kxc5 {[%clk 0:02:28]}  Rxd3 {[%clk 0:04:53]} 72. Kxb4 {[%clk 0:02:25]}  e4 {[%clk 0:05:15]}
73. Kc4 {[%clk 0:02:37]}  Rd6 {[%clk 0:05:32]} 74. Bh3 {[%clk 0:02:39]}  e3 {[%clk 0:05:53]} 75. Bf1 {[%clk 0:03:03]}  Rd2 {[%clk 0:06:08]} 0-1

[Event "2026 European Womens Championship"]
[Site "Batumi, GE"]
[Date "2026.05.29"]
[Round "5"]
[White "Ediberidze, Alexandra"]
[Black "Nenova, Andzhelika"]
[Result "0-1"]
[Board "117"]
[TimeControl "5400+30"]
[WhiteFideId "13636685"]
[BlackFideId "2939355"]
[WhiteElo "1638"]
[BlackElo "2072"]
[WhiteClock "0:22:00"]
[BlackClock "0:06:06"]
[Variant "Standard"]

1. e4 {[%clk 1:30:59]}  c5 {[%clk 1:29:58]} 2. Nf3 {[%clk 1:31:23]}  Nc6 {[%clk 1:30:05]} 3. Bb5 {[%clk 1:31:47]}  e5 {[%clk 1:30:06]}
4. O-O {[%clk 1:32:04]}  Bd6 {[%clk 1:30:31]} 5. c3 {[%clk 1:32:21]}  a6 {[%clk 1:30:26]} 6. Ba4 {[%clk 1:32:44]}  b5 {[%clk 1:30:52]}
7. Bb3 {[%clk 1:33:07]}  c4 {[%clk 1:31:18]} 8. Bc2 {[%clk 1:33:31]}  Nf6 {[%clk 1:27:52]} 9. d4 {[%clk 1:33:47]}  cxd3 {[%clk 1:28:18]}
10. Qxd3 {[%clk 1:34:11]}  Qe7 {[%clk 1:26:55]} 11. Rd1 {[%clk 1:30:26]}  Bc7 {[%clk 1:27:06]} 12. Bg5 {[%clk 1:30:26]}  O-O {[%clk 1:16:44]}
13. a4 {[%clk 1:27:10]}  b4 {[%clk 1:16:45]} 14. Nbd2 {[%clk 1:26:20]}  d6 {[%clk 0:56:15]} 15. Bxf6 {[%clk 1:07:13]}  gxf6 {[%clk 0:54:42]}
16. Nc4 {[%clk 1:04:26]}  Be6 {[%clk 0:54:44]} 17. Ne3 {[%clk 1:04:33]}  bxc3 {[%clk 0:49:09]} 18. bxc3 {[%clk 1:02:25]}  Qd8 {[%clk 0:47:53]}
19. Nd5 {[%clk 1:00:40]}  Nb8 {[%clk 0:43:42]} 20. Qe3 {[%clk 0:59:26]}  Kh8 {[%clk 0:42:37]} 21. Qh6 {[%clk 0:58:00]}  Nd7 {[%clk 0:43:02]}
22. Nh4 {[%clk 0:52:02]}  Rg8 {[%clk 0:43:24]} 23. Rd3 {[%clk 0:50:09]}  Rb8 {[%clk 0:25:40]} 24. Rf3 {[%clk 0:35:22]}  Rb2 {[%clk 0:23:52]}
25. Rc1 {[%clk 0:33:50]}  Ba5 {[%clk 0:18:51]} 26. Nf5 {[%clk 0:30:11]}  Bxf5 {[%clk 0:16:21]} 27. Rxf5 {[%clk 0:30:26]}  Rg6 {[%clk 0:16:36]}
28. Qe3 {[%clk 0:28:01]}  Bb6 {[%clk 0:16:02]} 29. Qf3 {[%clk 0:26:59]}  Bc5 {[%clk 0:15:15]} 30. h4 {[%clk 0:23:43]}  Qg8 {[%clk 0:05:24]}
31. Nxf6 {[%clk 0:22:42]}  Nxf6 {[%clk 0:05:37]} 32. Rxf6 {[%clk 0:23:06]}  Rg3 {[%clk 0:05:50]} 33. Qf5 {[%clk 0:21:34]}  Rxg2+ {[%clk 0:06:15]}
34. Kh1 {[%clk 0:22:00]}  Rxc2 {[%clk 0:06:06]} 0-1

[Event "2026 European Womens Championship"]
[Site "Batumi, GE"]
[Date "2026.05.29"]
[Round "5"]
[White "Subramanian, Anusha"]
[Black "Kalyoncu, Beren"]
[Result "0-1"]
[Board "118"]
[TimeControl "5400+30"]
[WhiteFideId "477710"]
[BlackFideId "51608383"]
[WhiteElo "2068"]
[BlackElo "1840"]
[WhiteTitle "WFM"]
[BlackTitle "WCM"]
[WhiteClock "0:19:08"]
[BlackClock "0:03:45"]
[Variant "Standard"]

1. e4 {[%clk 1:30:57]}  e6 {[%clk 1:29:02]} 2. d4 {[%clk 1:31:23]}  d5 {[%clk 1:29:12]} 3. exd5 {[%clk 1:31:47]}  exd5 {[%clk 1:29:28]}
4. c4 {[%clk 1:32:12]}  Bb4+ {[%clk 1:29:10]} 5. Nc3 {[%clk 1:32:37]}  Ne7 {[%clk 1:29:11]} 6. Bd3 {[%clk 1:33:00]}  dxc4 {[%clk 1:28:58]}
7. Bxc4 {[%clk 1:33:25]}  O-O {[%clk 1:26:47]} 8. Nge2 {[%clk 1:33:50]}  Nbc6 {[%clk 1:26:08]} 9. O-O {[%clk 1:33:08]}  Bf5 {[%clk 1:21:29]}
10. a3 {[%clk 1:27:59]}  Bxc3 {[%clk 1:17:01]} 11. bxc3 {[%clk 1:28:13]}  Nd5 {[%clk 1:15:55]} 12. Ng3 {[%clk 1:17:36]}  Bg6 {[%clk 1:11:19]}
13. Qf3 {[%clk 1:10:35]}  Nb6 {[%clk 1:09:41]} 14. Ba2 {[%clk 1:09:33]}  Qd7 {[%clk 1:08:01]} 15. h4 {[%clk 1:08:47]}  h6 {[%clk 1:07:27]}
16. h5 {[%clk 1:04:57]}  Bh7 {[%clk 1:07:39]} 17. Bf4 {[%clk 0:52:06]}  Rfe8 {[%clk 1:04:39]} 18. Bb1 {[%clk 0:48:43]}  Bxb1 {[%clk 1:04:30]}
19. Raxb1 {[%clk 0:48:55]}  Qd5 {[%clk 0:53:14]} 20. Qg4 {[%clk 0:46:55]}  Kh8 {[%clk 0:45:48]} 21. Nf5 {[%clk 0:44:43]}  Rg8 {[%clk 0:46:04]}
22. Ne3 {[%clk 0:35:10]}  Qd8 {[%clk 0:42:23]} 23. Qg3 {[%clk 0:33:03]}  Rc8 {[%clk 0:41:01]} 24. Qf3 {[%clk 0:25:30]}  Qd7 {[%clk 0:35:56]}
25. d5 {[%clk 0:23:15]}  Na5 {[%clk 0:35:44]} 26. Rfd1 {[%clk 0:20:40]}  Rge8 {[%clk 0:29:15]} 27. Bxh6 {[%clk 0:19:26]}  Nac4 {[%clk 0:20:45]}
28. Ng4 {[%clk 0:14:34]}  f5 {[%clk 0:18:04]} 29. Ne3 {[%clk 0:04:16]}  gxh6 {[%clk 0:18:07]} 30. Nxc4 {[%clk 0:03:04]}  Nxc4 {[%clk 0:18:22]}
31. Qf4 {[%clk 0:03:22]}  Nd6 {[%clk 0:16:50]} 32. Qxh6+ {[%clk 0:03:42]}  Qh7 {[%clk 0:16:52]} 33. Qf6+ {[%clk 0:03:44]}  Qg7 {[%clk 0:17:12]}
34. Qh4 {[%clk 0:03:56]}  Rg8 {[%clk 0:16:00]} 35. Qh2 {[%clk 0:02:49]}  Rce8 {[%clk 0:13:23]} 36. Rd3 {[%clk 0:02:09]}  Qh6 {[%clk 0:11:28]}
37. c4 {[%clk 0:01:42]}  b6 {[%clk 0:10:50]} 38. Qh4 {[%clk 0:01:05]}  Re4 {[%clk 0:09:48]} 39. Qh2 {[%clk 0:00:58]}  Rg5 {[%clk 0:05:07]}
40. Rh3 {[%clk 0:01:06]}  Kh7 {[%clk 0:04:51]} 41. f3 {[%clk 0:30:14]}  Re7 {[%clk 0:27:38]} 42. Rh4 {[%clk 0:27:09]}  Qg7 {[%clk 0:22:26]}
43. h6 {[%clk 0:26:40]}  Qg6 {[%clk 0:19:48]} 44. Rb2 {[%clk 0:25:48]}  Qf6 {[%clk 0:12:51]} 45. Rb1 {[%clk 0:25:17]}  Re2 {[%clk 0:11:13]}
46. Qf4 {[%clk 0:21:37]}  Rgxg2+ {[%clk 0:08:26]} 47. Kh1 {[%clk 0:21:54]}  Qg6 {[%clk 0:08:11]} 48. Rc1 {[%clk 0:21:01]}  Qg3 {[%clk 0:04:23]}
49. Qxg3 {[%clk 0:20:45]}  Rxg3 {[%clk 0:04:51]} 50. c5 {[%clk 0:20:56]}  bxc5 {[%clk 0:04:58]} 51. Rxc5 {[%clk 0:21:06]}  Re7 {[%clk 0:04:51]}
52. Ra5 {[%clk 0:20:09]}  Rxf3 {[%clk 0:04:51]} 53. Rxa7 {[%clk 0:20:10]}  Rf2 {[%clk 0:04:46]} 54. Kg1 {[%clk 0:20:15]}  Rc2 {[%clk 0:04:39]}
55. Kf1 {[%clk 0:19:47]}  Ne4 {[%clk 0:03:40]} 56. Rh3 {[%clk 0:18:51]}  f4 {[%clk 0:03:17]} 57. d6 {[%clk 0:18:39]}  Nxd6 {[%clk 0:03:13]}
58. Rf3 {[%clk 0:18:46]}  Re4 {[%clk 0:03:27]} 59. Rd3 {[%clk 0:18:51]}  Kxh6 {[%clk 0:03:26]} 60. a4 {[%clk 0:19:06]}  Rb4 {[%clk 0:03:35]}
61. Rd1 {[%clk 0:19:07]}  Nf5 {[%clk 0:03:23]} 62. Kg1 {[%clk 0:19:12]}  Ne3 {[%clk 0:03:29]} 63. Re1 {[%clk 0:19:08]}  Rbb2 {[%clk 0:03:45]} 0-1

[Event "2026 European Womens Championship"]
[Site "Batumi, GE"]
[Date "2026.05.29"]
[Round "5"]
[White "Dimitrijevic, Aleksandra"]
[Black "Rekhviashvili, Mariam"]
[Result "1-0"]
[Board "119"]
[TimeControl "5400+30"]
[WhiteFideId "929239"]
[BlackFideId "13635859"]
[WhiteElo "2059"]
[BlackElo "1836"]
[WhiteTitle "WGM"]
[WhiteClock "1:04:33"]
[BlackClock "0:33:09"]
[Variant "Standard"]

1. d4 {[%clk 1:24:31]}  d5 {[%clk 1:30:57]} 2. c4 {[%clk 1:24:55]}  e6 {[%clk 1:31:16]} 3. Nf3 {[%clk 1:25:20]}  Nf6 {[%clk 1:31:40]}
4. g3 {[%clk 1:25:45]}  Be7 {[%clk 1:26:14]} 5. Bg2 {[%clk 1:25:45]}  O-O {[%clk 1:26:02]} 6. O-O {[%clk 1:25:46]}  dxc4 {[%clk 1:26:13]}
7. Nc3 {[%clk 1:25:12]}  a6 {[%clk 1:19:15]} 8. Ne5 {[%clk 1:23:54]}  Nbd7 {[%clk 1:09:24]} 9. Nxc4 {[%clk 1:23:33]}  c6 {[%clk 0:58:14]}
10. a4 {[%clk 1:23:17]}  Nd5 {[%clk 0:56:09]} 11. a5 {[%clk 1:20:44]}  b5 {[%clk 0:54:11]} 12. axb6 {[%clk 1:20:25]}  N7xb6 {[%clk 0:54:35]}
13. Na5 {[%clk 1:20:44]}  Qd7 {[%clk 0:54:05]} 14. e4 {[%clk 1:20:24]}  Nf6 {[%clk 0:52:08]} 15. Qb3 {[%clk 1:18:52]}  Bd8 {[%clk 0:46:44]}
16. Bg5 {[%clk 1:09:46]}  Bb7 {[%clk 0:40:12]} 17. e5 {[%clk 1:08:39]}  h6 {[%clk 0:37:07]} 18. Bxf6 {[%clk 1:05:46]}  gxf6 {[%clk 0:37:15]}
19. Ne4 {[%clk 1:05:48]}  Rb8 {[%clk 0:36:27]} 20. Qxb6 {[%clk 1:03:18]}  c5 {[%clk 0:32:46]} 21. Nxb7 {[%clk 1:03:24]}  Rxb7 {[%clk 0:32:29]}
22. Qxb7 {[%clk 1:03:45]}  Qxb7 {[%clk 0:32:46]} 23. Nxf6+ {[%clk 1:04:09]}  Bxf6 {[%clk 0:33:09]} 24. Bxb7 {[%clk 1:04:33]} 1-0

[Event "2026 European Womens Championship"]
[Site "Batumi, GE"]
[Date "2026.05.29"]
[Round "5"]
[White "Hayrapetyan, Nvard"]
[Black "Chkhartishvili, Lika"]
[Result "1-0"]
[Board "120"]
[TimeControl "5400+30"]
[WhiteFideId "13316460"]
[BlackFideId "13635166"]
[WhiteElo "2057"]
[BlackElo "1822"]
[WhiteTitle "WFM"]
[WhiteClock "0:18:50"]
[BlackClock "0:19:44"]
[Variant "Standard"]

1. d4 {[%clk 1:30:58]}  Nf6 {[%clk 1:30:55]} 2. c4 {[%clk 1:31:24]}  e6 {[%clk 1:31:20]} 3. Nc3 {[%clk 1:31:49]}  Bb4 {[%clk 1:31:38]}
4. e3 {[%clk 1:32:01]}  O-O {[%clk 1:31:30]} 5. Bd3 {[%clk 1:31:53]}  Re8 {[%clk 1:27:59]} 6. Nge2 {[%clk 1:28:02]}  d5 {[%clk 1:20:18]}
7. O-O {[%clk 1:22:54]}  c5 {[%clk 1:13:36]} 8. a3 {[%clk 1:21:10]}  Bxc3 {[%clk 1:13:53]} 9. bxc3 {[%clk 1:21:10]}  cxd4 {[%clk 1:13:35]}
10. cxd4 {[%clk 1:21:03]}  dxc4 {[%clk 1:05:53]} 11. Bxc4 {[%clk 1:19:27]}  Nc6 {[%clk 1:05:52]} 12. Bb2 {[%clk 1:18:34]}  Bd7 {[%clk 1:04:36]}
13. Ng3 {[%clk 1:13:53]}  Rc8 {[%clk 1:00:04]} 14. Qe2 {[%clk 1:07:32]}  Na5 {[%clk 0:52:21]} 15. Bd3 {[%clk 1:05:52]}  Nd5 {[%clk 0:50:39]}
16. Rac1 {[%clk 1:04:13]}  Qe7 {[%clk 0:49:44]} 17. Bb1 {[%clk 1:00:16]}  a6 {[%clk 0:43:15]} 18. Qd2 {[%clk 0:52:07]}  Nc6 {[%clk 0:38:45]}
19. e4 {[%clk 0:50:31]}  Nb6 {[%clk 0:37:40]} 20. Rfe1 {[%clk 0:45:09]}  Na7 {[%clk 0:35:57]} 21. e5 {[%clk 0:42:15]}  Bb5 {[%clk 0:34:42]}
22. Ne4 {[%clk 0:39:49]}  Nc4 {[%clk 0:33:03]} 23. Rxc4 {[%clk 0:39:45]}  Rxc4 {[%clk 0:32:09]} 24. Re3 {[%clk 0:26:14]}  Rd8 {[%clk 0:21:37]}
25. Rg3 {[%clk 0:22:00]}  g6 {[%clk 0:20:56]} 26. Nf6+ {[%clk 0:18:02]}  Kg7 {[%clk 0:21:01]} 27. Rh3 {[%clk 0:18:15]}  h5 {[%clk 0:20:32]}
28. Rxh5 {[%clk 0:18:26]}  Qxf6 {[%clk 0:19:20]} 29. Qh6+ {[%clk 0:18:26]}  Kg8 {[%clk 0:19:44]} 30. exf6 {[%clk 0:18:50]} 1-0

[Event "2026 European Womens Championship"]
[Site "Batumi, GE"]
[Date "2026.05.29"]
[Round "5"]
[White "Chighvaria, Ana"]
[Black "Avetisyan, Ani"]
[Result "0-1"]
[Board "121"]
[TimeControl "5400+30"]
[WhiteFideId "13628666"]
[BlackFideId "13319035"]
[WhiteElo "1518"]
[BlackElo "2052"]
[WhiteClock "0:10:45"]
[BlackClock "0:33:15"]
[Variant "Standard"]

1. c4 {[%clk 1:30:57]}  e5 {[%clk 1:30:10]} 2. Nc3 {[%clk 1:31:21]}  Nf6 {[%clk 1:30:22]} 3. e4 {[%clk 1:30:07]}  Nc6 {[%clk 1:29:59]}
4. Be2 {[%clk 1:29:49]}  Bc5 {[%clk 1:28:52]} 5. Nf3 {[%clk 1:28:49]}  d6 {[%clk 1:26:13]} 6. d3 {[%clk 1:27:49]}  h6 {[%clk 1:24:12]}
7. O-O {[%clk 1:23:52]}  a5 {[%clk 1:20:31]} 8. h3 {[%clk 1:17:03]}  O-O {[%clk 1:20:37]} 9. Re1 {[%clk 1:16:51]}  Be6 {[%clk 1:18:29]}
10. Bf1 {[%clk 1:16:54]}  Nd7 {[%clk 1:11:44]} 11. Be3 {[%clk 1:16:09]}  f5 {[%clk 1:07:50]} 12. exf5 {[%clk 1:11:17]}  Bxf5 {[%clk 1:08:14]}
13. Bxc5 {[%clk 1:11:08]}  Nxc5 {[%clk 1:07:50]} 14. d4 {[%clk 1:07:39]}  exd4 {[%clk 1:04:45]} 15. Nxd4 {[%clk 1:06:26]}  Bd7 {[%clk 0:55:58]}
16. Nxc6 {[%clk 1:03:40]}  bxc6 {[%clk 0:55:30]} 17. Re3 {[%clk 0:58:47]}  Ne6 {[%clk 0:50:04]} 18. Rg3 {[%clk 0:53:13]}  Qf6 {[%clk 0:45:50]}
19. Qd2 {[%clk 0:46:52]}  Rab8 {[%clk 0:39:10]} 20. Re1 {[%clk 0:40:29]}  Nf4 {[%clk 0:38:04]} 21. Ree3 {[%clk 0:35:44]}  c5 {[%clk 0:35:11]}
22. Nd5 {[%clk 0:22:26]}  Qxb2 {[%clk 0:33:28]} 23. Qxb2 {[%clk 0:21:58]}  Rxb2 {[%clk 0:33:53]} 24. Re7 {[%clk 0:19:00]}  Nh5 {[%clk 0:32:28]}
25. Rxd7 {[%clk 0:11:11]}  Nxg3 {[%clk 0:32:54]} 26. fxg3 {[%clk 0:11:36]}  Rb1 {[%clk 0:32:59]} 27. Ne3 {[%clk 0:10:29]}  Re1 {[%clk 0:32:51]}
28. Re7 {[%clk 0:10:45]}  Rfxf1+ {[%clk 0:33:15]} 0-1